[Event "Mongolian Championship Open 2022"]
[Site "Chingis Khentii"]
[Date "2022.05.15"]
[Round "4.2"]
[White "Battulga, Namkhai"]
[Black "Enkhnar, Enkhbaatar"]
[Result "1-0"]
[ECO "B80"]
[WhiteElo "2402"]
[BlackElo "2368"]
[Annotator "TA"]
[PlyCount "59"]
[EventDate "2022.05.12"]
[EventType "tourn"]
[EventCountry "MGL"]
[SourceTitle "playchess.com"]
[Source "ChessBase"]
[SourceQuality "1"]
[TimeControl "40/5400+30:1800+30"]

{[%evp 18,59,0,-21,-2,0,0,0,9,5,136,-20,135,135,545,553,549,557,552,537,497,309,310,297,310,270,289,277,308,300,304,282,348,313,312,305,612,508,748,739,869,860,811,741]} 1. e4 {[%emt 0:00:02]} c5 {[%emt 0:00:22]} 2. Nf3 {[%emt 0:00:05]} e6 {[%emt 0:00:06]} 3. d4 {[%emt 0:00:06]} cxd4 {[%emt 0:00:02]} 4. Nxd4 {[%emt 0:00:07]} Nf6 {[%emt 0:00:01]} 5. Nc3 {[%emt 0:01:24]} d6 {[%emt 0:00:14]} 6. Be3 {[%emt 0:04:48]} a6 {[%emt 0:00:20]} 7. f3 {[%emt 0:00:07]} b5 {[%emt 0:00:06]} 8. Qd2 {[%emt 0:00:09]} Bb7 {[%emt 0:00:13]} 9. O-O-O {[%emt 0:01:50]} Nbd7 {[%emt 0:00:41]} 10. Bd3 {[%emt 0:00:55]} b4 {[%emt 0:02:27] B80: Sicilian Scheveningen: 6 g3 and 6 Be3, including English Attack.} 11. Nce2 {[%emt 0:00:10]} d5 {[%emt 0:00:33]} 12. exd5 {[%emt 0:07:43]} Nxd5 {[%emt 0:00:23] The position is equal.} 13. Nf4 {[%emt 0:03:27][%cal Od4e6] And now Ndxe6! would win.} Bc5 {[%emt 0:21:45] [#]} (13... Bd6 $11 {keeps the balance.}) 14. Bc4 $146 {[%emt 0:31:58]} (14. Be4 $1 $16) ({Predecessor:} 14. Nxd5 Bxd5 15. Nb3 Bxe3 16. Qxe3 O-O 17. Kb1 Qc7 18. h4 a5 19. h5 h6 20. f4 {0-1 (29) Atakisi,U (2274)-Tosic,M (2503) Yerevan 2000}) 14... N7b6 {[%emt 0:05:02]} ({Black should play} 14... Nxe3 $11 15. Qxe3 O-O) 15. Bxd5 $16 {[%emt 0:00:19] White is more active.} exd5 {[%emt 0:28:30][%mdl 8192] [#]} (15... Nxd5 $16 {is tougher.} 16. Ndxe6 Bxe3 17. Nxd8 Bxd2+ 18. Rxd2 Rxd8) 16. Nc6 $1 $18 {[%emt 0:18:53][%cal Bd4c6,Bc6b4,Bb4d3][%mdl 544] Pair of Knights!} Qd6 {[%emt 0:09:19]} 17. Bxc5 {[%emt 0:03:50]} Qxc5 {[%emt 0:00:05]} 18. Rhe1+ {[%emt 0:00:17]} Kf8 {[%emt 0:00:25]} 19. Nxb4 {[%emt 0:02:11]} Rd8 {[%emt 0:00:24]} 20. Nbd3 {[%emt 0:01:05]} Qd6 {[%emt 0:01:17]} 21. Qc3 {[%emt 0:03:52]} h5 {[%emt 0:01:23]} 22. Qd4 {[%emt 0:05:01]} Rh6 {[%emt 0:00:21]} 23. Re5 {[%emt 0:01:14]} ({Much less strong is} 23. Nc5 Bc8 24. Re5 Kg8 25. Nxd5 (25. Rxh5 Rxh5 26. Nxh5 Qh6+ 27. Nf4 Bf5 $18) 25... Nxd5) 23... Nc4 {[%emt 0:00:35]} 24. Rg5 {[%emt 0:02:23]} f6 {[%emt 0:01:32]} 25. Rxh5 {[%emt 0:01:43]} ({Not} 25. Nxh5 Rd7 26. Rf5 Re7 $14) 25... Rxh5 {[%emt 0:00:13]} 26. Nxh5 {[%emt 0:00:02]} Qxh2 $2 {[%emt 0:00:08]} (26... Kf7 27. Nc5 Bc6) 27. Nhf4 {[%emt 0:00:54] White is clearly winning.} Re8 {[%emt 0:00:32]} 28. b3 {[%emt 0:01:38]} Ne3 {[%emt 0:00:12]} 29. Re1 {[%emt 0:00:33]} Kf7 {[%emt 0:00:07]} 30. Rxe3 {[%emt 0:00:38] Black got outplayed after the opening.  Weighted Error Value: White=0.35/Black=1.21} 1-0

[Event "Mongolian Championship Open 2022"]
[Site "Chingis Khentii"]
[Date "2022.05.15"]
[Round "4.3"]
[White "Gundavaa, Bayarsaikhan"]
[Black "Gan-Erdene, Sugar"]
[Result "1/2-1/2"]
[ECO "E60"]
[WhiteElo "2495"]
[BlackElo "2419"]
[Annotator "TA"]
[PlyCount "60"]
[EventDate "2022.05.12"]
[EventType "tourn"]
[EventCountry "MGL"]
[SourceTitle "playchess.com"]
[Source "ChessBase"]
[SourceQuality "1"]
[TimeControl "40/5400+30:1800+30"]

{[%evp 14,60,44,25,28,20,27,16,18,23,49,55,33,36,38,34,29,36,64,3,10,0,0,0,0,-6,20,17,19,20,29,39,43,2,0,0,0,0,0,0,0,0,0,0,0,0,0,0,0]} 1. Nf3 {[%emt 0:00:02]} Nf6 {[%emt 0:00:08]} 2. g3 {[%emt 0:00:21]} g6 {[%emt 0:00:17]} 3. b3 {[%emt 0:00:16]} Bg7 {[%emt 0:00:07]} 4. Bb2 {[%emt 0:00:07]} O-O {[%emt 0:00:34]} 5. Bg2 {[%emt 0:00:06]} d6 {[%emt 0:00:22]} 6. d4 {[%emt 0:00:44]} c5 {[%emt 0:01:56]} 7. c4 {[%emt 0:01:18]} cxd4 {[%emt 0:00:56] Recently 7...Ne4 got a lot of attention.} 8. Nxd4 {[%emt 0:00:41]} d5 {[%emt 0:00:30] E60: King's Indian: Unusual lines and Fianchetto Variation without Nc3.} 9. cxd5 {[%emt 0:02:30]} Nxd5 {[%emt 0:00:24]} 10. O-O {[%emt 0:00:53]} Nb4 {[%emt 0:38:08]} 11. Na3 {[%emt 0:07:36]} N8c6 {[%emt 0:03:28]} 12. Nxc6 {[%emt 0:04:15]} Nxc6 {[%emt 0:04:59]} 13. Bxg7 {[%emt 0:04:39]} Kxg7 {[%emt 0:00:24]} 14. Rc1 {[%emt 0:05:38]} Qa5 {[%emt 0:05:00]} 15. Nc4 {[%emt 0:01:57] [#]} Qb5 $146 {[%emt 0:02:00]} (15... Qxa2 $2 16. Ra1 Rd8 17. Rxa2 $18) ({Predecessor:} 15... Qh5 16. Bxc6 bxc6 17. Qd4+ Kg8 18. Ne5 Bh3 19. Nxc6 e5 20. Nxe5 Rad8 21. Qf4 Bxf1 {½-½ (35) Berczes,C (2397)-Gyori,S (2167) Hungary 2012}) 16. Qd2 {[%emt 0:08:36]} (16. Nb2 $14) 16... Be6 $1 $11 {[%emt 0:05:16]} 17. Qc3+ {[%emt 0:15:21]} Kg8 $1 {[%emt 0:00:28]} 18. Rfd1 {[%emt 0:01:53]} Rfd8 {[%emt 0:03:18]} 19. Bf3 {[%emt 0:04:20]} Bxc4 {[%emt 0:06:55]} (19... Rac8 {seems wilder.} 20. Qe3 Rxd1+ 21. Rxd1 b6) 20. Rxd8+ {[%emt 0:01:39]} Rxd8 {[%emt 0:00:05]} 21. Qxc4 {[%emt 0:00:08]} Qxc4 {[%emt 0:03:26]} (21... Qe5 {is more complex.} 22. Kg2 Rd2 23. Rc2 Rxc2 24. Qxc2 Kg7) 22. Rxc4 {[%emt 0:00:11]} Rd2 {[%emt 0:11:58]} 23. Bxc6 {[%emt 0:00:57]} bxc6 {[%emt 0:00:04] The position is equal.} 24. Rxc6 {[%emt 0:00:32]} Rxa2 $14 {[%emt 0:00:14][%mdl 4096] Endgame KR-KR} 25. Rc7 {[%emt 0:00:06]} Rxe2 {[%emt 0:00:05]} 26. Rxa7 {[%emt 0:00:06]} Rb2 {[%emt 0:00:04][%cal Be2b2,Bb2b3,Bb3c3][%mdl 32]} 27. Rxe7 {[%emt 0:00:11]} Rxb3 {[%emt 0:00:04]} 28. Kg2 {[%emt 0:00:06]} Kg7 {[%emt 0:00:05]} 29. Ra7 {[%emt 0:00:05]} Rc3 {[%emt 0:00:05]} 30. Rb7 {[%emt 0:00:05]} Ra3 {[%emt 0:00:06] Weighted Error Value: White=0.08 (flawless) /Black=0.04 (flawless)} 1/2-1/2

[Event "Mongolian Championship Open 2022"]
[Site "Chingis Khentii"]
[Date "2022.05.15"]
[Round "4.4"]
[White "Batchuluun, Tsegmed"]
[Black "Agibileg, Uurtsaikh"]
[Result "1/2-1/2"]
[ECO "E61"]
[WhiteElo "2536"]
[BlackElo "2440"]
[Annotator "TA"]
[PlyCount "86"]
[EventDate "2022.05.12"]
[EventType "tourn"]
[EventCountry "MGL"]
[SourceTitle "playchess.com"]
[Source "ChessBase"]
[SourceQuality "1"]
[TimeControl "40/5400+30:1800+30"]

{[%evp 9,86,26,25,29,30,33,39,39,27,33,32,34,33,31,29,41,31,37,42,37,48,47,52,53,35,52,39,51,59,45,51,47,45,54,52,40,76,58,70,75,74,48,48,25,23,23,29,26,74,64,97,104,103,91,162,0,0,0,0,0,0,0,0,0,0,0,0,0,0,0,0,0,0,0,0,0,0,0,0]} 1. d4 {[%emt 0:00:03]} Nf6 {[%emt 0:00:12]} 2. c4 {[%emt 0:00:06]} g6 {[%emt 0:00:11]} 3. Nc3 {[%emt 0:00:07]} Bg7 {[%emt 0:00:05]} 4. g3 {[%emt 0:00:26]} O-O {[%emt 0:00:21]} 5. Bg2 {[%emt 0:00:09]} c5 {[%emt 0:00:10]} 6. dxc5 {[%emt 0:02:45] E61: King's Indian: Early deviations for White, including Smyslov System.} Qa5 {[%emt 0:02:18]} 7. Qa4 {[%emt 0:00:08]} Qxc5 {[%emt 0:01:52]} 8. Be3 {[%emt 0:00:08] White is slightly better.} Qc7 {[%emt 0:02:44]} 9. Nh3 {[%emt 0:00:08][%cal Bg1h3,Bh3f4,Bf4d5][%mdl 32]} d6 {[%emt 0:08:51] Prevents c5.} 10. Nf4 {[%emt 0:00:06]} Bd7 {[%emt 0:01:13]} 11. Ncd5 {[%emt 0:00:29]} Nxd5 {[%emt 0:02:35]} 12. Nxd5 {[%emt 0:00:06]} Qd8 {[%emt 0:00:23]} 13. Qa3 {[%emt 0:00:06][%cal Od5b6]} Nc6 {[%emt 0:06:48][%cal Bb8c6,Bc6d4,Bd4c2][%mdl 32]} 14. O-O {[%emt 0:00:07]} Nd4 {[%emt 0:08:29] [#]} 15. Qd3 $146 {[%emt 0:00:10] Prevents Nc2.} ({Predecessor:} 15. Bxd4 Bxd4 16. Rfd1 Bg7 17. Rac1 Bc6 18. Bh3 Re8 19. b4 e6 20. Nc3 a6 21. Qb3 {½-½ (30) Vidit,S (2723)-Sunilduth Lyna,N (2573) Moscow 2018}) 15... Bf5 {[%emt 0:04:07]} 16. Qd2 {[%emt 0:00:06]} Nc2 {[%emt 0:02:44]} 17. Bg5 {[%emt 0:00:07]} f6 {[%emt 0:01:04] [#]} 18. Bxf6 {[%emt 0:00:08]} Rxf6 {[%emt 0:14:34]} (18... Bxf6 19. Nxf6+) 19. Nxf6+ {[%emt 0:56:09][%mdl 64] Discovered Attack} Bxf6 {[%emt 0:00:23] This bishop pair is nice.} 20. e4 {[%emt 0:04:05]} Bxe4 {[%emt 0:01:45]} 21. Bxe4 {[%emt 0:00:14]} Nxa1 {[%emt 0:00:14]} 22. Rxa1 {[%emt 0:00:19]} Qb6 {[%emt 0:00:30]} 23. Bd5+ {[%emt 0:01:04]} Kh8 {[%emt 0:03:12]} 24. Re1 {[%emt 0:02:13][%cal Oe1e7]} Rf8 {[%emt 0:00:17]} 25. b3 {[%emt 0:10:18]} Qd4 {[%emt 0:13:01]} 26. Qc2 {[%emt 0:01:33]} b5 {[%emt 0:01:12]} 27. Re4 {[%emt 0:04:38]} Qc5 {[%emt 0:00:13]} (27... Qa1+ {is more complex.} 28. Kg2 Bd4 29. Re2 bxc4 30. Qxc4 Bb6) 28. Qd2 {[%emt 0:02:52]} bxc4 {[%emt 0:04:45]} (28... Bg5 $11 {is more appropriate.} 29. b4 Qb6 30. Qc3+ Bf6) 29. Rxc4 $16 {[%emt 0:04:56]} Qb6 {[%emt 0:01:07]} 30. Kg2 {[%emt 0:00:26]} Kg7 {[%emt 0:03:11]} 31. h4 {[%emt 0:01:32] White is more active.} Be5 {[%emt 0:02:03]} (31... Qb8 $16) 32. Rc6 $2 {[%emt 0:07:30] [#]} (32. h5 $18) 32... Qd4 $11 {[%emt 0:01:56] The position is equal.} 33. Qxd4 {[%emt 0:00:05]} Bxd4 {[%emt 0:00:04][%cal Be5d4,Bd4c5,Bc5b4,Bb4d2][%mdl 4128] Endgame KRB-KRB} 34. f4 {[%emt 0:00:15]} Rf5 {[%emt 0:01:28]} 35. Bc4 {[%emt 0:02:02]} Rc5 {[%emt 0:01:40]} 36. Rxc5 {[%emt 0:00:27]} Bxc5 {[%emt 0:00:23] KB-KB} 37. g4 {[%emt 0:00:14]} h5 {[%emt 0:00:58]} 38. g5 {[%emt 0:01:56]} Bb4 {[%emt 0:00:12]} 39. Be6 {[%emt 0:00:09]} Bd2 {[%emt 0:01:20]} 40. Kg3 {[%emt 0:00:00]} Be1+ {[%emt 0:00:00]} 41. Kh3 {[%emt 0:00:42]} Bd2 {[%emt 0:00:28]} 42. Kg3 {[%emt 0:03:30]} Be1+ {[%emt 0:00:10]} 43. Kh3 {[%emt 0:00:08]} Bd2 {[%emt 0:00:07] Weighted Error Value: White=0.06 (flawless) /Black=0.07 (flawless)} 1/2-1/2

[Event "Mongolian Championship Open 2022"]
[Site "Chingis Khentii"]
[Date "2022.05.15"]
[Round "4.5"]
[White "Batsuren, Dambasuren"]
[Black "Munkhgal, Gombosuren"]
[Result "1-0"]
[ECO "A50"]
[WhiteElo "2501"]
[BlackElo "2502"]
[Annotator "TA"]
[PlyCount "105"]
[EventDate "2022.05.12"]
[EventType "tourn"]
[EventCountry "MGL"]
[SourceTitle "playchess.com"]
[Source "ChessBase"]
[SourceQuality "1"]
[TimeControl "40/5400+30:1800+30"]

{[%evp 9,105,26,60,59,64,56,58,63,113,112,130,108,127,122,130,96,98,102,102,94,100,127,112,101,147,130,181,141,173,161,160,162,160,144,125,121,206,183,196,168,341,349,347,347,330,344,360,347,330,295,402,380,445,439,450,433,474,495,490,452,431,430,405,392,468,444,809,739,710,697,770,704,670,751,1430,1455,1543,1478,2208,1966,5573,4133,2961,5443,5393,3069,29973,29975,29975,29976,29976,29977,29972,29978,29979,29980,29980,29981]} 1. d4 {[%emt 0:00:01][%cal Bd2d4,Bd4d5][%mdl 32]} Nf6 {[%emt 0:00:14]} 2. c4 {[%emt 0:00:06]} e6 {[%emt 0:00:02]} 3. Bf4 {[%emt 0:00:06]} c5 {[%emt 0:02:32]} 4. d5 {[%emt 0:00:07]} b5 {[%emt 0:01:40]} 5. Nf3 {[%emt 0:00:07]} bxc4 {[%emt 0:02:02]} 6. Nc3 {[%emt 0:00:23] A50: Queen's Fianchetto Defence (1 d4 Nf6 2 c4 b6).} d6 {[%emt 0:06:44]} 7. e4 {[%emt 0:00:25][%mdl 1024] White has compensation.} e5 {[%emt 0:06:59] [#]} 8. Be3 $146 {[%emt 0:02:55] White is slightly better.} ({Predecessor:} 8. Bc1 g6 9. Nd2 Bg7 10. Nxc4 O-O 11. Be2 Ne8 12. O-O f5 13. exf5 gxf5 14. f4 {0-1 (31) Toth,L (2157)-Goczo,M (2249) Budapest 2004}) 8... Qa5 {[%emt 0:03:35]} ({Black should play} 8... Be7 $14) 9. Nd2 $16 {[%emt 0:00:30]} Ba6 {[%emt 0:06:14]} 10. f3 {[%emt 0:05:11]} (10. Bxc4 Nxe4 $1 11. Bxa6 Nxc3 12. bxc3 Qxa6 $15) 10... Nbd7 {[%emt 0:06:17]} 11. Bxc4 {[%emt 0:01:09]} Rb8 {[%emt 0:03:53]} 12. Bxa6 {[%emt 0:06:22]} Qxa6 {[%emt 0:00:15]} 13. Qe2 {[%emt 0:00:05]} Qxe2+ {[%emt 0:04:26]} 14. Kxe2 {[%emt 0:00:09]} Nh5 {[%emt 0:26:29]} 15. g3 {[%emt 0:06:05] Against Nf4+} Be7 {[%emt 0:00:38]} 16. Nc4 {[%emt 0:03:51][%cal Bd2c4,Bc4a5,Ba5c6][%mdl 32]} O-O {[%emt 0:00:10] [#]} ({Better is} 16... g6) 17. Rab1 $1 {[%emt 0:00:26]} h6 {[%emt 0:12:34]} (17... Rfc8 $16 {keeps fighting.} 18. Rhc1 Nhf6) 18. a3 {[%emt 0:09:27]} Rfc8 {[%emt 0:02:59]} 19. Na5 {[%emt 0:03:24] aiming for Nc6.} Kf8 {[%emt 0:02:01]} 20. Nc6 {[%emt 0:01:10]} Rb3 {[%emt 0:00:16]} 21. Nxa7 {[%emt 0:11:14] White is more active.} Ra8 {[%emt 0:00:58]} 22. Nc6 {[%emt 0:05:30]} Nb6 {[%emt 0:00:25]} (22... Nb8 $16) 23. Kd3 $18 {[%emt 0:03:58][%cal Be2d3,Bd3c2,Bc2b3][%mdl 32] Threatens to win with Kc2.} c4+ {[%emt 0:03:15]} 24. Kc2 {[%emt 0:00:20] Strongly threatening Bxb6.} Nf6 $2 {[%emt 0:04:27]} (24... Na4 {was worth a try.} 25. Bd2 (25. Nxe7 Kxe7 26. Nxa4 Rxa4 $14) 25... Nc5) 25. Bxb6 {[%emt 0:03:13]} Rxb6 {[%emt 0:00:01]} 26. b3 {[%emt 0:00:16]} cxb3+ {[%emt 0:01:31]} 27. Rxb3 {[%emt 0:00:06]} Rxb3 {[%emt 0:00:08]} 28. Kxb3 {[%emt 0:00:06]} Nd7 {[%emt 0:00:04]} 29. Rb1 {[%emt 0:00:39]} Nc5+ {[%emt 0:01:58]} 30. Kc4 {[%emt 0:00:22]} Bg5 {[%emt 0:00:44]} 31. Rb8+ {[%emt 0:01:22]} Rxb8 {[%emt 0:00:03]} 32. Nxb8 {[%emt 0:00:07][%mdl 4096] Endgame KBN-KNN} Bd2 {[%emt 0:00:53]} 33. Nb5 {[%emt 0:00:25]} Nb7 {[%emt 0:00:08]} 34. Nc6 {[%emt 0:01:14]} Ke8 {[%emt 0:00:13]} 35. Kd3 {[%emt 0:01:05]} Bg5 {[%emt 0:00:42]} 36. a4 {[%emt 0:00:28][%cal Ba3a4,Ba4a5,Ba5a6][%mdl 32] Black must now prevent a5.} Bd8 {[%emt 0:00:42] Prevents a5.} 37. a5 {[%emt 0:06:03] Prevents Bb6.} Kd7 {[%emt 0:00:14]} (37... Bxa5 $142 38. Nxa5 Nxa5 39. Nxd6+ Kf8) 38. a6 {[%emt 0:00:12]} Nc5+ {[%emt 0:00:04]} 39. Kc4 {[%emt 0:00:06]} Nxa6 {[%emt 0:00:10]} 40. Nxd8 {[%emt 0:00:00]} Kxd8 {[%emt 0:00:00]} 41. Nxd6 {[%emt 0:00:10] KN-KN} f6 {[%emt 0:00:33]} 42. Nf5 {[%emt 0:00:13]} g6 {[%emt 0:00:47]} 43. Nxh6 {[%emt 0:00:23]} Nb8 {[%emt 0:00:05]} 44. Ng8 {[%emt 0:02:31]} Nd7 {[%emt 0:00:54]} 45. d6 {[%emt 0:00:09]} Ke8 {[%emt 0:01:20]} 46. Kd5 {[%emt 0:00:08]} Kf7 {[%emt 0:00:03]} 47. Nh6+ {[%emt 0:00:07]} Kg7 {[%emt 0:00:06]} 48. Ke6 {[%emt 0:00:07] White mates.} Nc5+ {[%emt 0:00:12] [#]} 49. Ke7 $1 {[%emt 0:00:07]} Kxh6 {[%emt 0:00:16]} 50. Kxf6 {[%emt 0:00:06]} g5 {[%emt 0:03:51]} 51. g4 {[%emt 0:00:23]} Kh7 {[%emt 0:00:50]} 52. Ke7 {[%emt 0:00:14]} Kg7 {[%emt 0:00:30]} 53. d7 {[%emt 0:00:30] Weighted Error Value: White=0.06 (flawless) /Black=0.49} 1-0

[Event "Mongolian Championship Open 2022"]
[Site "Chingis Khentii"]
[Date "2022.05.15"]
[Round "4.6"]
[White "Boldoo, Erdenepurev"]
[Black "Amartuvshin, Ganzorig"]
[Result "1/2-1/2"]
[ECO "E32"]
[WhiteElo "2371"]
[BlackElo "2350"]
[Annotator "TA"]
[PlyCount "141"]
[EventDate "2022.05.12"]
[EventType "tourn"]
[EventCountry "MGL"]
[SourceTitle "playchess.com"]
[Source "ChessBase"]
[SourceQuality "1"]
[TimeControl "40/5400+30:1800+30"]

{[%evp 9,141,26,17,12,25,7,6,0,34,29,67,28,29,0,34,-20,0,0,0,-6,-13,-8,-8,-10,0,-10,-12,-12,-10,-20,-11,-32,-24,-21,-31,-31,-55,-97,-100,-114,-39,-79,-79,-118,-78,-66,-62,-133,-122,-116,-124,-121,-72,-102,-70,-74,0,-43,-39,-59,-25,-191,-192,-229,-233,-205,-141,-129,-131,-125,-125,-130,-88,-112,-120,-123,-75,-79,-75,-95,-43,-45,-50,-50,-50,-50,-50,-59,-27,-27,-29,-43,0,0,0,0,0,0,0,0,0,0,0,0,0,0,0,0,0,0,-1,-16,-16,-16,-16,-16,-16,-16,0,0,0,0,0,0,0,0,0,0,0,-59,0,-8,0,-8]} 1. d4 {[%emt 0:00:02]} Nf6 {[%emt 0:00:06]} 2. c4 {[%emt 0:00:05]} e6 {[%emt 0:00:05]} 3. Nc3 {[%emt 0:00:21]} Bb4 {[%emt 0:00:07]} 4. Qc2 {[%emt 0:00:11]} b6 {[%emt 0:00:13]} 5. e4 {[%emt 0:03:30]} c5 {[%emt 0:00:35]} 6. dxc5 {[%emt 0:02:14] E32: Nimzo-Indian: Classical (4 Qc2): 4...0-0.} Bxc5 {[%emt 0:02:34]} 7. Be2 {[%emt 0:02:30]} Nc6 {[%emt 0:07:33][%cal Bb8c6,Bc6d4,Bd4e2][%mdl 32]} 8. Nf3 {[%emt 0:00:25]} Qc7 {[%emt 0:00:46]} 9. O-O {[%emt 0:01:20]} a6 {[%emt 0:01:37]} 10. h3 {[%emt 0:01:52]} Bb7 {[%emt 0:01:12]} 11. a3 {[%emt 0:07:49]} Nd4 {[%emt 0:04:53] [#]} 12. Qd3 $146 {[%emt 0:01:26]} (12. Nxd4 $14 Bxd4 13. Bd3) ({Predecessor:} 12. Nxd4 Bxd4 13. Bd3 Bxc3 14. Qxc3 Nxe4 15. Bxe4 Bxe4 16. Qd4 f5 17. Be3 {½-½ (119) Vijayalakshmi,S (2335)-Xu,J (2523) Doha 2014}) 12... Nxe2+ {[%emt 0:01:48]} 13. Qxe2 {[%emt 0:00:02]} Rc8 {[%emt 0:00:39]} 14. b4 {[%emt 0:15:20]} Be7 {[%emt 0:02:36]} 15. Nd2 {[%emt 0:00:50]} (15. e5 {with more complications.} Nh5 16. Na4 b5 17. cxb5 axb5 18. Nd4) 15... d6 {[%emt 0:13:43][%cal Ob6b5]} 16. Bb2 {[%emt 0:00:25]} O-O {[%emt 0:00:08]} 17. Rac1 {[%emt 0:00:12]} Nd7 {[%emt 0:01:52]} 18. Nd1 {[%emt 0:01:34]} Qd8 {[%emt 0:05:48]} 19. Nf3 {[%emt 0:09:39]} Rc7 {[%emt 0:01:39]} 20. Qd3 {[%emt 0:03:30]} Qa8 {[%emt 0:01:12]} 21. Nd2 {[%emt 0:00:31]} Rfc8 {[%emt 0:10:34][%cal Ob6b5]} (21... Ne5 22. Qd4 Bf6 23. Qxb6 $14) 22. Ne3 {[%emt 0:02:33]} Ne5 {[%emt 0:03:19]} (22... Bc6 {keeps more tension.} 23. Rfe1 b5 24. Nd5 exd5 25. exd5 Ne5) 23. Bxe5 {[%emt 0:01:11]} dxe5 {[%emt 0:00:09]} 24. f3 {[%emt 0:44:58]} Rc6 {[%emt 0:01:33]} (24... Rd8 $17 25. Qe2 Bg5) 25. Nb3 {[%emt 0:00:00] [#]} a5 $1 {[%emt 0:03:13]} 26. Qc3 {[%emt 0:00:00]} axb4 {[%emt 0:01:18]} 27. axb4 {[%emt 0:00:00]} Qa4 {[%emt 0:00:16]} 28. Rb1 {[%emt 0:00:00]} (28. c5 $15 Ba6 29. Rfd1) 28... Qxb4 {[%emt 0:00:58]} 29. Qxe5 {[%emt 0:00:00]} Bd6 {[%emt 0:01:33]} 30. Qd4 {[%emt 0:03:00]} Bf4 {[%emt 0:10:27] This bishop pair is nice.} (30... Rd8 $142 {[%cal Od6h2] aiming for ...Bh2+!} 31. Rfd1 Rcc8) 31. e5 $17 {[%emt 0:00:00]} Bg5 {[%emt 0:00:28] Hoping for ...Rd8.} (31... Bxe3+ $6 32. Qxe3 Qxc4 33. Nd4 $11) 32. Nd2 {[%emt 0:00:00][%cal Bb3d2,Bd2e4,Be4d6][%mdl 32]} Qe7 {[%emt 0:06:12]} ({Black should play} 32... Qc5 $17 33. Qxc5 Rxc5) 33. Ne4 {[%emt 0:00:00]} (33. f4 $5 {[%cal Rf4g5]} Bh4 34. Ne4 $14) 33... Rd8 {[%emt 0:01:19]} 34. Nd6 {[%emt 0:00:00]} f6 {[%emt 0:01:50]} 35. c5 $2 {[%emt 0:00:00]} (35. Rxb6 $2 fxe5 36. Nef5 exf5 $19) (35. Qc3 $1 $11 {and White stays safe.}) 35... fxe5 $19 {[%emt 0:01:05]} (35... Rxc5 36. Rxb6 Bxe3+ 37. Qxe3 Rxe5 38. Rxb7 $15) ({Not} 35... bxc5 36. Qe4 Bxe3+ 37. Qxe3 $17) 36. Qe4 {[%emt 0:00:25] [#]} Ba8 {[%emt 0:01:35]} ({Worse is} 36... Rxc5 37. Nxb7 Rd4 38. Nxc5 Rxe4 39. Nxe4 $15) 37. Ra1 {[%emt 0:03:05][%cal Oe3d5]} Bxe3+ {[%emt 0:05:16]} ({Stronger than} 37... Rxc5 38. Rxa8 Qxd6 39. Ng4) 38. Qxe3 {[%emt 0:00:00]} Rxc5 {[%emt 0:00:10][%cal Bc6c5,Bc5d5,Bd5d4][%mdl 32]} 39. Ne4 {[%emt 0:00:00]} Bxe4 {[%emt 0:00:13]} 40. Qxe4 {[%emt 0:00:00]} Rcd5 {[%emt 0:00:00]} 41. Rfb1 {[%emt 0:00:00]} b5 {[%emt 0:01:17]} 42. Ra6 {[%emt 0:00:09]} Rf8 {[%emt 0:10:42]} (42... Rb8 $142 43. Kh2 b4) 43. Qg4 $17 {[%emt 0:00:54] Prevents b4.} Re8 {[%emt 0:01:45]} 44. Kh1 {[%emt 0:00:38]} Qf6 {[%emt 0:12:14]} (44... Rb8 $17 45. Kh2 b4) 45. Rb6 $1 $15 {[%emt 0:00:30]} Rd4 {[%emt 0:00:08]} 46. Qg3 {[%emt 0:01:13]} e4 {[%emt 0:00:24]} 47. fxe4 {[%emt 0:00:16]} Rxe4 {[%emt 0:00:23]} 48. Rb8 {[%emt 0:00:27]} Rf8 {[%emt 0:02:09]} 49. R1xb5 {[%emt 0:01:23]} Rf4 {[%emt 0:00:26]} 50. R5b7 {[%emt 0:00:36]} g6 {[%emt 0:07:28]} 51. Kh2 {[%emt 0:00:08]} Rxb8 {[%emt 0:02:56]} 52. Rxb8+ $11 {[%emt 0:00:05][%mdl 4096] Endgame KQR-KQR} Kg7 {[%emt 0:00:04]} 53. Rb7+ {[%emt 0:00:23]} Kh6 {[%emt 0:00:46]} 54. Qe3 {[%emt 0:00:09] And now g3 would win.} Qd4 {[%emt 0:00:41]} 55. Qxd4 {[%emt 0:01:19]} Rxd4 {[%emt 0:00:07] KR-KR} 56. Re7 {[%emt 0:00:02]} Re4 {[%emt 0:00:29]} 57. Kg3 {[%emt 0:00:50]} g5 {[%emt 0:00:07]} 58. Kf3 {[%emt 0:00:03]} Re5 {[%emt 0:00:05]} 59. g4 {[%emt 0:01:10]} Kg6 {[%emt 0:00:07]} 60. Kf2 {[%emt 0:00:06]} h5 {[%emt 0:00:48]} 61. gxh5+ {[%emt 0:00:05]} Kxh5 {[%emt 0:00:09]} 62. Kf3 {[%emt 0:00:29]} Kg6 {[%emt 0:00:10]} 63. Re8 {[%emt 0:00:05]} Re1 {[%emt 0:00:31]} 64. Rg8+ {[%emt 0:00:33]} Kf6 {[%emt 0:00:27]} 65. Rf8+ {[%emt 0:00:26]} Kg7 {[%emt 0:00:20]} 66. Ra8 {[%emt 0:00:14]} Rb1 {[%emt 0:00:13]} 67. Kg4 {[%emt 0:00:10]} Rg1+ {[%emt 0:00:30]} 68. Kf3 {[%emt 0:00:12]} Kf6 {[%emt 0:00:04]} 69. Rg8 {[%emt 0:00:46]} (69. Rf8+ $11 Kg6 70. Rg8+ Kf7 71. Rh8) 69... Kf5 {[%emt 0:00:08]} (69... Ra1 $15) 70. Rf8+ {[%emt 0:00:24]} Ke5 {[%emt 0:00:06] ( -> ...Rf1+)} 71. Rg8 {[%emt 0:00:07] And White is the lucky defender.  Weighted Error Value: White=0.17 (very precise) /Black=0.13 (very precise)} 1/2-1/2